[Event "*** SCC Grand Prix: Titled Tuesday Blitz"]
[Site "Chess.com"]
[Date "2020.06.02"]
[Round "1"]
[White "BogdanBelyakov89"]
[Black "Kopytkin"]
[Result "1-0"]
[WhiteElo "2658"]
[BlackElo "2323"]
[TimeControl "180+1"]
[EndTime "10:06:23 PDT"]
[Termination "BogdanBelyakov89 won by resignation"]

1. e4 {[%clk 0:03:00.5]} 1... Nf6 {[%clk 0:02:58.2]} 2. Nc3 {[%clk 0:02:59]}
2... d5 {[%clk 0:02:57.8]} 3. e5 {[%clk 0:02:58]} 3... Ne4 {[%clk 0:02:57.7]} 4.
Nf3 {[%clk 0:02:54.8]} 4... Bg4 {[%clk 0:02:56.1]} 5. Be2 {[%clk 0:02:53.9]}
5... Nxc3 {[%clk 0:02:54.8]} 6. bxc3 {[%clk 0:02:51.6]} 6... e6 {[%clk
0:02:54.9]} 7. d4 {[%clk 0:02:51.2]} 7... c5 {[%clk 0:02:49.6]} 8. Rb1 {[%clk
0:02:48.5]} 8... Qc7 {[%clk 0:02:49]} 9. c4 {[%clk 0:02:36]} 9... dxc4 {[%clk
0:02:14.9]} 10. d5 {[%clk 0:02:31.3]} 10... Bxf3 {[%clk 0:01:38.3]} 11. Bxf3
{[%clk 0:02:31]} 11... Qxe5+ {[%clk 0:01:38.4]} 12. Be3 {[%clk 0:02:30.3]} 12...
exd5 {[%clk 0:01:18.5]} 13. Qxd5 {[%clk 0:02:26.2]} 13... Qxd5 {[%clk
0:01:17.5]} 14. Bxd5 {[%clk 0:02:27.1]} 14... Nd7 {[%clk 0:01:07.6]} 15. Rxb7
{[%clk 0:02:20.7]} 15... Rb8 {[%clk 0:01:05.2]} 16. O-O {[%clk 0:02:14.2]} 16...
Rxb7 {[%clk 0:01:02.9]} 17. Bxb7 {[%clk 0:02:13.8]} 17... Bd6 {[%clk 0:00:49]}
18. Bc6 {[%clk 0:01:15.6]} 18... Ke7 {[%clk 0:00:38.5]} 19. Re1 {[%clk
0:01:13.6]} 19... Ne5 {[%clk 0:00:30]} 20. Bb5 {[%clk 0:01:08.6]} 20... Kf6
{[%clk 0:00:24.7]} 21. h3 {[%clk 0:01:02]} 21... Rb8 {[%clk 0:00:22.1]} 22. a4
{[%clk 0:01:01.4]} 22... h6 {[%clk 0:00:17.6]} 23. Bd2 {[%clk 0:01:00.2]} 23...
Ng6 {[%clk 0:00:06.9]} 24. Bxc4 {[%clk 0:00:57.1]} 24... Be5 {[%clk 0:00:05.3]}
25. Bb5 {[%clk 0:00:52.2]} 25... Rd8 {[%clk 0:00:05.4]} 26. Ba5 {[%clk
0:00:47.1]} 26... h5 {[%clk 0:00:05.6]} 27. Bxd8+ {[%clk 0:00:46.4]} 1-0

[Event "*** SCC Grand Prix: Titled Tuesday Blitz"]
[Site "Chess.com"]
[Date "2020.06.02"]
[Round "1"]
[White "ChronicUnhappiness"]
[Black "Tormoz"]
[Result "0-1"]
[WhiteElo "2319"]
[BlackElo "2657"]
[TimeControl "180+1"]
[EndTime "10:06:23 PDT"]
[Termination "Tormoz won by resignation"]

1. c4 {[%clk 0:03:00.9]} 1... e6 {[%clk 0:02:59.4]} 2. d4 {[%clk 0:02:59.6]}
2... d5 {[%clk 0:03:00.3]} 3. Nc3 {[%clk 0:02:58.9]} 3... Nf6 {[%clk 0:03:00]}
4. Bg5 {[%clk 0:02:58.1]} 4... Be7 {[%clk 0:02:55.4]} 5. e3 {[%clk 0:02:58.1]}
5... h6 {[%clk 0:02:55.2]} 6. Bxf6 {[%clk 0:02:57.2]} 6... Bxf6 {[%clk
0:02:56.1]} 7. Nf3 {[%clk 0:02:57.4]} 7... O-O {[%clk 0:02:55.9]} 8. Rc1 {[%clk
0:02:51.2]} 8... Nc6 {[%clk 0:02:53.8]} 9. cxd5 {[%clk 0:02:42.1]} 9... exd5
{[%clk 0:02:52.9]} 10. Bd3 {[%clk 0:02:24.8]} 10... Ne7 {[%clk 0:02:52.4]} 11.
O-O {[%clk 0:02:20.1]} 11... c6 {[%clk 0:02:52.5]} 12. e4 {[%clk 0:02:16.1]}
12... dxe4 {[%clk 0:02:46.4]} 13. Nxe4 {[%clk 0:02:16.1]} 13... Nd5 {[%clk
0:02:46.6]} 14. Ne5 {[%clk 0:02:05.2]} 14... Nf4 {[%clk 0:02:10.4]} 15. Bc4
{[%clk 0:02:00.7]} 15... Bf5 {[%clk 0:01:40.5]} 16. Re1 {[%clk 0:01:40.5]} 16...
Bg5 {[%clk 0:01:21.3]} 17. Rc3 {[%clk 0:01:17.4]} 17... Nd5 {[%clk 0:01:17.6]}
18. Rf3 {[%clk 0:01:07.8]} 18... Bxe4 {[%clk 0:01:11.9]} 19. Rxe4 {[%clk
0:01:06.6]} 19... Qd6 {[%clk 0:01:06.4]} 20. h4 {[%clk 0:00:51.7]} 20... Bf6
{[%clk 0:01:02.8]} 21. Ng4 {[%clk 0:00:50.6]} 21... Bd8 {[%clk 0:00:49.6]} 22.
Bxd5 {[%clk 0:00:42]} 22... Qxd5 {[%clk 0:00:47.4]} 23. Qd3 {[%clk 0:00:21.9]}
23... Bc7 {[%clk 0:00:41.3]} 24. Nxh6+ {[%clk 0:00:21]} 24... gxh6 {[%clk
0:00:40.9]} 25. Rg4+ {[%clk 0:00:21.1]} 25... Kh8 {[%clk 0:00:40.8]} 26. Rf5
{[%clk 0:00:21.2]} 26... Rae8 {[%clk 0:00:36.5]} 27. g3 {[%clk 0:00:16.4]} 27...
Re1+ {[%clk 0:00:34.4]} 0-1

[Event "*** SCC Grand Prix: Titled Tuesday Blitz"]
[Site "Chess.com"]
[Date "2020.06.02"]
[Round "1"]
[White "nihalsarin"]
[Black "PotapovaM"]
[Result "1-0"]
[WhiteElo "3014"]
[BlackElo "2451"]
[TimeControl "180+1"]
[EndTime "10:06:25 PDT"]
[Termination "nihalsarin won by resignation"]

1. d4 {[%clk 0:02:59.2]} 1... Nf6 {[%clk 0:02:59.6]} 2. c4 {[%clk 0:02:59]} 2...
e6 {[%clk 0:02:58.6]} 3. Nc3 {[%clk 0:02:59]} 3... Bb4 {[%clk 0:02:58.2]} 4. Qc2
{[%clk 0:02:59.3]} 4... O-O {[%clk 0:02:57.9]} 5. Nf3 {[%clk 0:02:58.6]} 5... d5
{[%clk 0:02:52.8]} 6. cxd5 {[%clk 0:02:54.7]} 6... exd5 {[%clk 0:02:52.5]} 7.
Bf4 {[%clk 0:02:54.5]} 7... c6 {[%clk 0:02:28.5]} 8. e3 {[%clk 0:02:53.4]} 8...
Nbd7 {[%clk 0:02:27.4]} 9. Bd3 {[%clk 0:02:49.9]} 9... Re8 {[%clk 0:02:27.9]}
10. O-O {[%clk 0:02:49.3]} 10... Nf8 {[%clk 0:02:26.4]} 11. Ne5 {[%clk
0:02:49.5]} 11... Ng6 {[%clk 0:02:24.3]} 12. Bg3 {[%clk 0:02:48.8]} 12... Bd6
{[%clk 0:02:21.4]} 13. f4 {[%clk 0:02:47.3]} 13... a6 {[%clk 0:02:03.8]} 14.
Rae1 {[%clk 0:02:45.6]} 14... c5 {[%clk 0:02:03.2]} 15. Kh1 {[%clk 0:02:27.2]}
15... b5 {[%clk 0:02:02.9]} 16. Bxg6 {[%clk 0:02:26.3]} 16... hxg6 {[%clk
0:02:00.4]} 17. Bh4 {[%clk 0:02:26.7]} 17... Bf5 {[%clk 0:01:54.7]} 18. Qf2
{[%clk 0:02:26.5]} 18... Be7 {[%clk 0:01:18.8]} 19. dxc5 {[%clk 0:01:52.3]}
19... Ne4 {[%clk 0:01:15.5]} 20. Nxe4 {[%clk 0:01:48.6]} 20... Bxh4 {[%clk
0:01:15.4]} 21. Ng3 {[%clk 0:01:49.1]} 21... Rc8 {[%clk 0:00:56.8]} 22. b4
{[%clk 0:01:43.6]} 22... a5 {[%clk 0:00:48.7]} 23. a3 {[%clk 0:01:43.4]} 23...
Be4 {[%clk 0:00:36.5]} 24. Rd1 {[%clk 0:01:30.5]} 24... Qe7 {[%clk 0:00:31.5]}
25. Rfe1 {[%clk 0:01:24.9]} 25... Qe6 {[%clk 0:00:29.2]} 26. Nf3 {[%clk
0:01:23.4]} 26... Bxg3 {[%clk 0:00:15.7]} 27. Qxg3 {[%clk 0:01:23.2]} 27... axb4
{[%clk 0:00:16.2]} 28. axb4 {[%clk 0:01:23.1]} 28... Ra8 {[%clk 0:00:16.8]} 29.
Ng5 {[%clk 0:01:10.5]} 29... Qe7 {[%clk 0:00:15.1]} 30. Qh4 {[%clk 0:01:10]}
30... Qf6 {[%clk 0:00:10.5]} 31. Qh7+ {[%clk 0:01:10.2]} 31... Kf8 {[%clk
0:00:10.8]} 32. Qh3 {[%clk 0:01:11.1]} 32... Ra2 {[%clk 0:00:08]} 33. Nh7+
{[%clk 0:01:10.8]} 33... Ke7 {[%clk 0:00:07.1]} 34. Nxf6 {[%clk 0:01:11.7]} 1-0

[Event "*** SCC Grand Prix: Titled Tuesday Blitz"]
[Site "Chess.com"]
[Date "2020.06.02"]
[Round "1"]
[White "Anwesh9792"]
[Black "ahappypawn"]
[Result "1-0"]
[WhiteElo "2723"]
[BlackElo "2368"]
[TimeControl "180+1"]
[EndTime "10:06:26 PDT"]
[Termination "Anwesh9792 won by resignation"]

1. d4 {[%clk 0:03:00.9]} 1... d5 {[%clk 0:02:59]} 2. c4 {[%clk 0:03:00.9]} 2...
e6 {[%clk 0:02:58.8]} 3. Nf3 {[%clk 0:03:00]} 3... a6 {[%clk 0:02:56.9]} 4. cxd5
{[%clk 0:02:58.2]} 4... exd5 {[%clk 0:02:57.8]} 5. Nc3 {[%clk 0:02:58.7]} 5...
Nf6 {[%clk 0:02:56.5]} 6. Bg5 {[%clk 0:02:58.3]} 6... Be6 {[%clk 0:02:55.5]} 7.
e3 {[%clk 0:02:58.6]} 7... Nbd7 {[%clk 0:02:54.1]} 8. Bd3 {[%clk 0:02:58.5]}
8... c6 {[%clk 0:02:54.2]} 9. O-O {[%clk 0:02:57.2]} 9... Bd6 {[%clk 0:02:53]}
10. Bh4 {[%clk 0:02:41.9]} 10... Qc7 {[%clk 0:02:33.5]} 11. Bg3 {[%clk
0:02:38.7]} 11... h6 {[%clk 0:02:33.9]} 12. Bxd6 {[%clk 0:02:35.1]} 12... Qxd6
{[%clk 0:02:34.8]} 13. h3 {[%clk 0:02:36]} 13... O-O {[%clk 0:02:34.4]} 14. Qc2
{[%clk 0:02:32.5]} 14... Rac8 {[%clk 0:02:23.2]} 15. Rac1 {[%clk 0:02:31.6]}
15... b5 {[%clk 0:02:12.8]} 16. Rfd1 {[%clk 0:02:31.1]} 16... c5 {[%clk
0:02:00.1]} 17. dxc5 {[%clk 0:02:30.4]} 17... Nxc5 {[%clk 0:02:01]} 18. Qd2
{[%clk 0:02:27.3]} 18... b4 {[%clk 0:01:52.7]} 19. Ne2 {[%clk 0:02:27.1]} 19...
Nce4 {[%clk 0:01:48.3]} 20. Bxe4 {[%clk 0:02:25.4]} 20... Nxe4 {[%clk
0:01:49.2]} 21. Qd4 {[%clk 0:02:25]} 21... Qe7 {[%clk 0:01:39.7]} 22. Nf4 {[%clk
0:02:21.8]} 22... Rfd8 {[%clk 0:01:29.2]} 23. Qe5 {[%clk 0:02:14.3]} 23... Rc5
{[%clk 0:01:08]} 24. Nd4 {[%clk 0:01:56.1]} 24... Qd6 {[%clk 0:00:49.7]} 25.
Qxd6 {[%clk 0:01:45.9]} 25... Rxd6 {[%clk 0:00:50.6]} 26. Rxc5 {[%clk
0:01:38.4]} 26... Nxc5 {[%clk 0:00:51.5]} 27. Rc1 {[%clk 0:01:39.2]} 27... Na4
{[%clk 0:00:50.3]} 28. Nd3 {[%clk 0:01:33.1]} 28... Bd7 {[%clk 0:00:38]} 29. b3
{[%clk 0:01:28.4]} 29... Nc3 {[%clk 0:00:34.8]} 30. Nxb4 {[%clk 0:01:28.5]}
30... a5 {[%clk 0:00:31.5]} 31. Rxc3 {[%clk 0:01:27.6]} 31... axb4 {[%clk
0:00:31.8]} 32. Rc7 {[%clk 0:01:25.5]} 32... Be6 {[%clk 0:00:28.1]} 33. Rc6
{[%clk 0:01:23.2]} 33... Rd8 {[%clk 0:00:21.9]} 34. Nxe6 {[%clk 0:01:22]} 34...
fxe6 {[%clk 0:00:22.8]} 35. Rxe6 {[%clk 0:01:22.6]} 35... Ra8 {[%clk 0:00:23.2]}
36. Rb6 {[%clk 0:01:22.1]} 36... Rxa2 {[%clk 0:00:23.6]} 37. Rxb4 {[%clk
0:01:22.2]} 37... Kf7 {[%clk 0:00:24.2]} 38. g4 {[%clk 0:01:19.2]} 38... Ke6
{[%clk 0:00:22.6]} 39. Kg2 {[%clk 0:01:19.3]} 39... Ke5 {[%clk 0:00:21.9]} 40.
Rb7 {[%clk 0:01:18.5]} 40... g5 {[%clk 0:00:20.1]} 41. Rb6 {[%clk 0:01:18.3]}
41... Rb2 {[%clk 0:00:17.9]} 42. Rxh6 {[%clk 0:01:17.9]} 42... Rxb3 {[%clk
0:00:18.4]} 43. Rg6 {[%clk 0:01:17.8]} 43... Ke4 {[%clk 0:00:18.6]} 44. Rxg5
{[%clk 0:01:15.5]} 1-0

[Event "*** SCC Grand Prix: Titled Tuesday Blitz"]
[Site "Chess.com"]
[Date "2020.06.02"]
[Round "1"]
[White "Larina_Marija"]
[Black "lelajavakhishvili"]
[Result "0-1"]
[WhiteElo "2117"]
[BlackElo "2512"]
[TimeControl "180+1"]
[EndTime "10:06:26 PDT"]
[Termination "lelajavakhishvili won by resignation"]

1. e4 {[%clk 0:02:59.8]} 1... d6 {[%clk 0:02:58.2]} 2. d4 {[%clk 0:02:59.4]}
2... Nf6 {[%clk 0:02:56.9]} 3. Nc3 {[%clk 0:02:58.8]} 3... g6 {[%clk 0:02:56.2]}
4. f3 {[%clk 0:02:57.6]} 4... c6 {[%clk 0:02:55.9]} 5. a4 {[%clk 0:02:55.6]}
5... Bg7 {[%clk 0:02:53]} 6. Be3 {[%clk 0:02:55.3]} 6... O-O {[%clk 0:02:51.8]}
7. Qd2 {[%clk 0:02:54]} 7... Nbd7 {[%clk 0:02:49.9]} 8. h4 {[%clk 0:02:50.1]}
8... h5 {[%clk 0:02:46]} 9. Nh3 {[%clk 0:02:49.7]} 9... e5 {[%clk 0:02:41.9]}
10. Ng5 {[%clk 0:02:47]} 10... d5 {[%clk 0:02:31.6]} 11. exd5 {[%clk 0:02:38.3]}
11... Nxd5 {[%clk 0:02:27.1]} 12. Nxd5 {[%clk 0:02:37.3]} 12... cxd5 {[%clk
0:02:27.7]} 13. dxe5 {[%clk 0:02:11.5]} 13... Nxe5 {[%clk 0:02:26.5]} 14. O-O-O
{[%clk 0:02:11.1]} 14... Bd7 {[%clk 0:02:12.3]} 15. Qxd5 {[%clk 0:02:07.8]}
15... Bxa4 {[%clk 0:02:01.5]} 16. Qxd8 {[%clk 0:01:37.8]} 16... Rfxd8 {[%clk
0:02:00.5]} 17. Rxd8+ {[%clk 0:01:12]} 17... Rxd8 {[%clk 0:02:01.4]} 18. Bxa7
{[%clk 0:01:05.4]} 18... Rc8 {[%clk 0:02:00.8]} 19. c3 {[%clk 0:01:01.3]} 19...
Nc6 {[%clk 0:01:37.3]} 20. Be3 {[%clk 0:00:58.5]} 20... Bb3 {[%clk 0:01:35]} 21.
Bd3 {[%clk 0:00:30.3]} 21... Ne5 {[%clk 0:01:27.7]} 22. Bc2 {[%clk 0:00:24.8]}
22... Ra8 {[%clk 0:01:11]} 23. Rg1 {[%clk 0:00:15.6]} 23... Ra1+ {[%clk
0:01:04]} 24. Kd2 {[%clk 0:00:15.5]} 24... Nc4+ {[%clk 0:01:03.8]} 25. Kd3
{[%clk 0:00:13.8]} 25... Nxb2+ {[%clk 0:01:03.6]} 26. Kd2 {[%clk 0:00:13.1]}
26... Nc4+ {[%clk 0:01:00.6]} 27. Kd3 {[%clk 0:00:13]} 27... Bxc2+ {[%clk
0:01:00.6]} 28. Kxc2 {[%clk 0:00:12.6]} 28... Nxe3+ {[%clk 0:01:00.3]} 29. Kd3
{[%clk 0:00:12.9]} 29... Rxg1 {[%clk 0:01:00.1]} 0-1

[Event "*** SCC Grand Prix: Titled Tuesday Blitz"]
[Site "Chess.com"]
[Date "2020.06.02"]
[Round "1"]
[White "MiroVlasenko"]
[Black "AGW2016"]
[Result "1-0"]
[WhiteElo "2634"]
[BlackElo "2297"]
[TimeControl "180+1"]
[EndTime "10:06:27 PDT"]
[Termination "MiroVlasenko won by resignation"]

1. e4 {[%clk 0:03:00.3]} 1... c5 {[%clk 0:02:59.5]} 2. Nc3 {[%clk 0:03:00.1]}
2... Nc6 {[%clk 0:02:58.8]} 3. f4 {[%clk 0:03:00.3]} 3... e6 {[%clk 0:02:57.9]}
4. Nf3 {[%clk 0:02:59.6]} 4... g6 {[%clk 0:02:58.3]} 5. f5 {[%clk 0:02:55]} 5...
Bg7 {[%clk 0:02:57.2]} 6. fxe6 {[%clk 0:02:54.8]} 6... dxe6 {[%clk 0:02:56.6]}
7. Bb5 {[%clk 0:02:54.2]} 7... Ne7 {[%clk 0:02:55.7]} 8. d3 {[%clk 0:02:53.7]}
8... O-O {[%clk 0:02:55.4]} 9. O-O {[%clk 0:02:50.8]} 9... a6 {[%clk 0:02:55.6]}
10. Bxc6 {[%clk 0:02:49.8]} 10... Nxc6 {[%clk 0:02:55.5]} 11. Bg5 {[%clk
0:02:44.3]} 11... f6 {[%clk 0:02:37.7]} 12. Bh4 {[%clk 0:02:31.4]} 12... e5
{[%clk 0:02:30.3]} 13. Nd5 {[%clk 0:02:29]} 13... Be6 {[%clk 0:02:29]} 14. c4
{[%clk 0:02:28.7]} 14... b5 {[%clk 0:02:20.4]} 15. b3 {[%clk 0:02:25.3]} 15...
Nd4 {[%clk 0:02:18]} 16. Nxd4 {[%clk 0:02:21]} 16... cxd4 {[%clk 0:02:11.4]} 17.
Qd2 {[%clk 0:02:18.5]} 17... Bxd5 {[%clk 0:02:03.8]} 18. cxd5 {[%clk 0:02:16.5]}
18... Qd6 {[%clk 0:02:03.5]} 19. g4 {[%clk 0:02:07.3]} 19... Rac8 {[%clk
0:01:44.5]} 20. Rf2 {[%clk 0:02:02.4]} 20... Rc3 {[%clk 0:01:26.9]} 21. Raf1
{[%clk 0:02:01.4]} 21... g5 {[%clk 0:01:26.6]} 22. Bg3 {[%clk 0:01:56.6]} 22...
Rfc8 {[%clk 0:01:25.6]} 23. h4 {[%clk 0:01:52.2]} 23... h6 {[%clk 0:01:25.9]}
24. Qe2 {[%clk 0:01:46.2]} 24... Rc2 {[%clk 0:01:04.6]} 25. Qxc2 {[%clk
0:01:42.2]} 25... Rxc2 {[%clk 0:01:05.5]} 26. Rxc2 {[%clk 0:01:42.1]} 26... Qd7
{[%clk 0:01:06.2]} 27. Rf5 {[%clk 0:01:40.2]} 27... Kf7 {[%clk 0:01:01.6]} 28.
hxg5 {[%clk 0:01:35.4]} 28... hxg5 {[%clk 0:01:01.4]} 29. Bxe5 {[%clk
0:01:34.8]} 29... Kg6 {[%clk 0:01:02]} 30. Bxd4 {[%clk 0:01:34.1]} 30... Qd6
{[%clk 0:01:00.5]} 31. Kg2 {[%clk 0:01:32.1]} 31... Qb4 {[%clk 0:00:57.4]} 32.
Bf2 {[%clk 0:01:16.8]} 32... a5 {[%clk 0:00:55]} 33. Rc6 {[%clk 0:01:12.2]}
33... Qd2 {[%clk 0:00:50]} 34. Rf3 {[%clk 0:01:06.7]} 34... Kh7 {[%clk
0:00:37.7]} 35. d6 {[%clk 0:01:04.6]} 35... Bf8 {[%clk 0:00:35.8]} 36. d7 {[%clk
0:01:03.3]} 36... Be7 {[%clk 0:00:35.8]} 37. Re6 {[%clk 0:01:00.8]} 37... Bd8
{[%clk 0:00:35.7]} 38. Re8 {[%clk 0:01:00.8]} 38... Bb6 {[%clk 0:00:35.9]} 39.
d8=Q {[%clk 0:01:01]} 39... Bxd8 {[%clk 0:00:35.7]} 40. Rxd8 {[%clk 0:01:01.4]}
40... Kg7 {[%clk 0:00:34.3]} 41. Rd7+ {[%clk 0:01:00.5]} 41... Kg8 {[%clk
0:00:31.6]} 42. Rxf6 {[%clk 0:00:59.7]} 42... Qxa2 {[%clk 0:00:31.9]} 43. Rc6
{[%clk 0:00:57.7]} 1-0

[Event "*** SCC Grand Prix: Titled Tuesday Blitz"]
[Site "Chess.com"]
[Date "2020.06.02"]
[Round "1"]
[White "HarutyunianTigranK"]
[Black "TrenerChos"]
[Result "1-0"]
[WhiteElo "2712"]
[BlackElo "2355"]
[TimeControl "180+1"]
[EndTime "10:06:29 PDT"]
[Termination "HarutyunianTigranK won by checkmate"]

1. c4 {[%clk 0:03:00]} 1... Nf6 {[%clk 0:02:58.4]} 2. Nc3 {[%clk 0:03:00.1]}
2... c5 {[%clk 0:02:55.3]} 3. Nf3 {[%clk 0:02:59.3]} 3... Nc6 {[%clk 0:02:51.4]}
4. e3 {[%clk 0:02:59.5]} 4... g6 {[%clk 0:02:49.9]} 5. d4 {[%clk 0:02:59.3]}
5... cxd4 {[%clk 0:02:49.9]} 6. exd4 {[%clk 0:03:00.2]} 6... d5 {[%clk
0:02:50.4]} 7. cxd5 {[%clk 0:03:00]} 7... Nxd5 {[%clk 0:02:50.1]} 8. Qb3 {[%clk
0:03:00.4]} 8... Nxc3 {[%clk 0:02:42.7]} 9. Bc4 {[%clk 0:03:00.2]} 9... e6
{[%clk 0:02:39.6]} 10. bxc3 {[%clk 0:02:58.8]} 10... Bg7 {[%clk 0:02:38.5]} 11.
Ba3 {[%clk 0:02:58.8]} 11... Na5 {[%clk 0:02:33.4]} 12. Bb5+ {[%clk 0:02:39.5]}
12... Bd7 {[%clk 0:02:30]} 13. Qa4 {[%clk 0:02:34.9]} 13... Nc6 {[%clk
0:02:24.4]} 14. Qc2 {[%clk 0:02:01.4]} 14... Rc8 {[%clk 0:02:18.7]} 15. O-O
{[%clk 0:01:59.7]} 15... Nxd4 {[%clk 0:02:13.3]} 16. Nxd4 {[%clk 0:01:57.9]}
16... Bxd4 {[%clk 0:02:11.2]} 17. Qa4 {[%clk 0:01:47]} 17... Bb6 {[%clk
0:01:36.3]} 18. Rad1 {[%clk 0:01:46.3]} 18... Rc6 {[%clk 0:01:21.9]} 19. Bxc6
{[%clk 0:01:45.9]} 19... bxc6 {[%clk 0:01:21.7]} 20. Rd2 {[%clk 0:01:36.9]}
20... Qg5 {[%clk 0:01:19.1]} 21. Rfd1 {[%clk 0:01:34.3]} 21... c5 {[%clk
0:00:55.9]} 22. Qxd7+ {[%clk 0:01:24.2]} 22... Kf8 {[%clk 0:00:55.5]} 23. c4
{[%clk 0:01:24.2]} 23... Kg7 {[%clk 0:00:44]} 24. Bb2+ {[%clk 0:01:24]} 24... e5
{[%clk 0:00:42.6]} 25. Rd5 {[%clk 0:01:23.9]} 25... Rd8 {[%clk 0:00:39.3]} 26.
Bxe5+ {[%clk 0:01:22.7]} 26... Kh6 {[%clk 0:00:30.3]} 27. Bg7+ {[%clk
0:01:21.7]} 27... Kxg7 {[%clk 0:00:29]} 28. Rxg5 {[%clk 0:01:22.6]} 28... Rxd7
{[%clk 0:00:28.6]} 29. Rxd7 {[%clk 0:01:23.5]} 29... Kf6 {[%clk 0:00:26.9]} 30.
Rgd5 {[%clk 0:01:23.3]} 30... h5 {[%clk 0:00:26.3]} 31. R5d6+ {[%clk 0:01:24.2]}
31... Ke5 {[%clk 0:00:16.5]} 32. Rxb6 {[%clk 0:01:25.1]} 32... axb6 {[%clk
0:00:15.7]} 33. Rb7 {[%clk 0:01:26]} 33... h4 {[%clk 0:00:12.5]} 34. Rxb6 {[%clk
0:01:26.4]} 34... h3 {[%clk 0:00:12.3]} 35. gxh3 {[%clk 0:01:26.4]} 35... f5
{[%clk 0:00:11.7]} 36. a4 {[%clk 0:01:26.5]} 36... g5 {[%clk 0:00:10.1]} 37. a5
{[%clk 0:01:27.4]} 37... f4 {[%clk 0:00:09.8]} 38. a6 {[%clk 0:01:28.3]} 38...
f3 {[%clk 0:00:09.9]} 39. a7 {[%clk 0:01:29.2]} 39... g4 {[%clk 0:00:10]} 40.
a8=Q {[%clk 0:01:30.1]} 40... gxh3 {[%clk 0:00:09.5]} 41. Qd5+ {[%clk 0:01:31]}
41... Kf4 {[%clk 0:00:09.2]} 42. Rf6+ {[%clk 0:01:31.9]} 42... Kg4 {[%clk
0:00:09.4]} 43. Qf5+ {[%clk 0:01:31.4]} 43... Kh4 {[%clk 0:00:10.3]} 44. Rh6#
{[%clk 0:01:31.5]} 1-0

[Event "*** SCC Grand Prix: Titled Tuesday Blitz"]
[Site "Chess.com"]
[Date "2020.06.02"]
[Round "1"]
[White "PavelShkapenko"]
[Black "Torrentec"]
[Result "1-0"]
[WhiteElo "2640"]
[BlackElo "2303"]
[TimeControl "180+1"]
[EndTime "10:06:29 PDT"]
[Termination "PavelShkapenko won on time"]

1. e4 {[%clk 0:03:00.3]} 1... e5 {[%clk 0:02:59.5]} 2. Nf3 {[%clk 0:02:59.4]}
2... Nc6 {[%clk 0:02:59.5]} 3. g3 {[%clk 0:02:59.5]} 3... Bc5 {[%clk 0:02:59.2]}
4. Bg2 {[%clk 0:02:58.6]} 4... d6 {[%clk 0:02:59.1]} 5. O-O {[%clk 0:02:58.6]}
5... Bg4 {[%clk 0:02:57]} 6. c3 {[%clk 0:02:51.2]} 6... Nge7 {[%clk 0:02:56.5]}
7. h3 {[%clk 0:02:47]} 7... Bh5 {[%clk 0:02:55.8]} 8. b4 {[%clk 0:02:32.9]} 8...
Bb6 {[%clk 0:02:55]} 9. b5 {[%clk 0:02:32.9]} 9... Nb8 {[%clk 0:02:48.2]} 10. d4
{[%clk 0:02:32.9]} 10... Nd7 {[%clk 0:02:47.6]} 11. Na3 {[%clk 0:02:28.6]} 11...
Bg6 {[%clk 0:02:43.7]} 12. Re1 {[%clk 0:02:26.9]} 12... O-O {[%clk 0:02:42.8]}
13. Nc4 {[%clk 0:02:25.8]} 13... f6 {[%clk 0:02:33.6]} 14. a4 {[%clk 0:02:24.2]}
14... a6 {[%clk 0:02:30.8]} 15. Qb3 {[%clk 0:02:21.4]} 15... Bf7 {[%clk
0:02:30.5]} 16. a5 {[%clk 0:02:02.1]} 16... axb5 {[%clk 0:02:22.8]} 17. Qxb5
{[%clk 0:02:01.5]} 17... Ba7 {[%clk 0:02:06.4]} 18. Ne3 {[%clk 0:01:51.2]} 18...
Rb8 {[%clk 0:01:42.3]} 19. Bd2 {[%clk 0:01:45.7]} 19... exd4 {[%clk 0:01:41]}
20. cxd4 {[%clk 0:01:36.4]} 20... Nc6 {[%clk 0:01:40.5]} 21. Bc3 {[%clk
0:01:34.3]} 21... Re8 {[%clk 0:01:39.4]} 22. a6 {[%clk 0:01:30.6]} 22... Rxe4
{[%clk 0:00:44.1]} 23. axb7 {[%clk 0:01:28.9]} 23... Nxd4 {[%clk 0:00:36.2]} 24.
Nxd4 {[%clk 0:01:08.4]} 24... Bxd4 {[%clk 0:00:35.3]} 25. Bxd4 {[%clk
0:00:56.6]} 25... Rxd4 {[%clk 0:00:35]} 26. Nf5 {[%clk 0:00:57.1]} 26... Rd2
{[%clk 0:00:18.1]} 27. Ne7+ {[%clk 0:00:57.1]} 27... Kh8 {[%clk 0:00:15.8]} 28.
Nc6 {[%clk 0:00:57.6]} 28... Rxb7 {[%clk 0:00:10.2]} 29. Qxb7 {[%clk 0:00:55.7]}
29... Qf8 {[%clk 0:00:08.7]} 30. Ra8 {[%clk 0:00:53.9]} 1-0

[Event "*** SCC Grand Prix: Titled Tuesday Blitz"]
[Site "Chess.com"]
[Date "2020.06.02"]
[Round "1"]
[White "colegiodemadrid"]
[Black "WIDBIFS"]
[Result "0-1"]
[WhiteElo "2372"]
[BlackElo "2725"]
[TimeControl "180+1"]
[EndTime "10:06:30 PDT"]
[Termination "WIDBIFS won by resignation"]

1. e4 {[%clk 0:02:58.1]} 1... c6 {[%clk 0:02:59.7]} 2. d4 {[%clk 0:02:57.2]}
2... d5 {[%clk 0:03:00.6]} 3. e5 {[%clk 0:02:57.7]} 3... g6 {[%clk 0:03:00.4]}
4. Nf3 {[%clk 0:02:47.2]} 4... Bg7 {[%clk 0:02:56.9]} 5. h4 {[%clk 0:02:46.5]}
5... h5 {[%clk 0:02:56.7]} 6. c3 {[%clk 0:02:43.9]} 6... Bg4 {[%clk 0:02:56.6]}
7. Qb3 {[%clk 0:02:36.4]} 7... b6 {[%clk 0:02:48.3]} 8. Be2 {[%clk 0:02:34.2]}
8... Bxf3 {[%clk 0:02:48.3]} 9. Bxf3 {[%clk 0:02:32.6]} 9... e6 {[%clk
0:02:49.2]} 10. Bg5 {[%clk 0:02:31.4]} 10... Ne7 {[%clk 0:02:47.2]} 11. Nd2
{[%clk 0:02:29.2]} 11... Nd7 {[%clk 0:02:47]} 12. c4 {[%clk 0:02:20]} 12... Qc7
{[%clk 0:02:33.2]} 13. O-O {[%clk 0:01:55.5]} 13... Nf5 {[%clk 0:02:29.4]} 14.
Qd3 {[%clk 0:01:36.3]} 14... O-O {[%clk 0:02:24.7]} 15. cxd5 {[%clk 0:01:22.2]}
15... cxd5 {[%clk 0:02:24.1]} 16. Rac1 {[%clk 0:01:17.9]} 16... Qb7 {[%clk
0:02:24.2]} 17. Rc3 {[%clk 0:01:09.7]} 17... Rac8 {[%clk 0:02:23.1]} 18. Rfc1
{[%clk 0:01:09.6]} 18... Rxc3 {[%clk 0:02:23.5]} 19. Rxc3 {[%clk 0:01:09.2]}
19... Rc8 {[%clk 0:02:23.8]} 20. Nf1 {[%clk 0:01:09.2]} 20... Rxc3 {[%clk
0:02:23.3]} 21. Qxc3 {[%clk 0:01:06.4]} 21... Bf8 {[%clk 0:02:18.5]} 22. Ne3
{[%clk 0:01:05.1]} 22... Nxe3 {[%clk 0:02:19]} 23. fxe3 {[%clk 0:01:05.7]} 23...
b5 {[%clk 0:02:16.1]} 24. g4 {[%clk 0:00:57.9]} 24... hxg4 {[%clk 0:02:12.5]}
25. Bxg4 {[%clk 0:00:58.8]} 25... b4 {[%clk 0:02:11.5]} 26. Qd3 {[%clk
0:00:57.5]} 26... Qc6 {[%clk 0:02:10.3]} 27. Qb1 {[%clk 0:00:52.1]} 27... Qc4
{[%clk 0:01:59.9]} 28. h5 {[%clk 0:00:48.3]} 28... Nxe5 {[%clk 0:01:38.8]} 29.
Bd1 {[%clk 0:00:20.5]} 29... Qd3 {[%clk 0:01:22.9]} 30. Bc2 {[%clk 0:00:16.4]}
30... Qe2 {[%clk 0:01:00.6]} 31. dxe5 {[%clk 0:00:16.5]} 31... Qxh5 {[%clk
0:01:00.8]} 32. Kf2 {[%clk 0:00:17]} 32... Qxg5 {[%clk 0:00:59.7]} 33. Qe1
{[%clk 0:00:13]} 33... a5 {[%clk 0:00:55.5]} 34. Ke2 {[%clk 0:00:12.7]} 34...
Qxe5 {[%clk 0:00:55.6]} 35. Qh4 {[%clk 0:00:12.3]} 35... Qxb2 {[%clk 0:00:54.8]}
0-1